fUSD/lending_fUSD_20250818
["ID","MTS","AMOUNT","RATE_DAILY","PERIOD"]
[380056132,1755514240142,-482.0,0.00012198,2]
[380056133,1755514240152,-150.0,0.00012198,2]
[380056134,1755514240162,-500.0,0.00012198,2]
[380056135,1755514240172,-500.0,0.00012198,2]
[380056136,1755514240182,-500.0,0.00012198,2]
[380056137,1755514240191,-284.18670159,0.00012198,2]
[380056138,1755514240201,-500.0,0.00012198,2]
[380056139,1755514240211,-500.0,0.00012198,2]
[380056140,1755514240221,-150.0,0.00012198,2]
[380056141,1755514240230,-500.0,0.00012198,2]
[380056142,1755514240240,-150.0,0.00012198,2]
[380056143,1755514240250,-150.0,0.00012198,2]
[380056144,1755514240259,-500.0,0.00012198,2]
[380056145,1755514240268,-500.0,0.00012198,2]
[380056146,1755514240277,-423.0,0.00012198,2]
[380056147,1755514240287,-500.0,0.00012198,2]
[380056148,1755514240296,-500.0,0.00012198,2]
[380056149,1755514240306,-150.0,0.00012198,2]
[380056150,1755514240315,-500.0,0.00012198,2]
[380056151,1755514240325,-150.0,0.00012198,2]
[380056152,1755514240335,-628.0,0.00012198,2]
[380056153,1755514240344,-793.0,0.00012198,2]
[380056154,1755514240354,-450.0,0.00012198,2]
[380056155,1755514240365,-3778.0,0.00012198,2]
[380056156,1755514240374,-500.0,0.00012198,2]
[380056157,1755514240384,-150.0,0.00012198,2]
[380056158,1755514240395,-200.0,0.00012298,2]
[380056159,1755514240406,-1000.0,0.000123,2]
[380056160,1755514240415,-411.7709919,0.00012338,2]
[380056161,1755514240425,-192.55908554,0.00012382,2]
[380056162,1755514240435,-1255.476,0.00012397,2]
[380056163,1755514240444,-2029.0,0.00012397,2]
[380056164,1755514240453,-3371.0,0.00012397,2]
[380056165,1755514240463,-157.387,0.00012397,2]
[380056166,1755514240472,-904.0,0.00012397,2]
[380056167,1755514240481,-1323.375,0.00012397,2]
[380056168,1755514240490,-574.962,0.00012397,2]
[380056169,1755514240499,-1656.0,0.00012397,2]
[380056170,1755514240508,-600.789,0.00012397,2]
[380056171,1755514240518,-6090.0,0.00012397,2]
[380056172,1755514240527,-717.0,0.00012397,2]
[380056173,1755514240537,-2235.0,0.00012397,2]
[380056174,1755514240546,-21495.0,0.00012397,2]
[380056175,1755514240555,-4151.0,0.00012397,2]
[380056176,1755514240564,-250.0,0.00012397,2]
[380056177,1755514240575,-200.0,0.00012397,2]
[380056178,1755514240584,-251.0,0.00012397,2]
[380056179,1755514240594,-151.0,0.00012401,2]
[380056180,1755514240603,-150.0,0.00012406,2]
[380056181,1755514240612,-161.03,0.00012436,2]
[380056182,1755514240622,-843.78711038,0.00012462,2]
[380056183,1755514240632,-458.40919931,0.00012462,2]
[380056184,1755514240641,-160.0,0.00012462,2]
[380056185,1755514240651,-212.00699823,0.00012462,2]
[380056187,1755514240661,-200.0,0.00012469,2]
[380056189,1755514240670,-254.64789077,0.00012472,2]
[380056191,1755514240679,-150.0,0.00012472,2]
[380056192,1755514240689,-500.0,0.00012472,2]
[380056193,1755514240698,-1501.0,0.00012472,2]
[380056194,1755514240707,-500.0,0.00012472,2]
[380056196,1755514240716,-420.0,0.00012472,2]
[380056198,1755514240725,-150.0,0.00012472,2]
[380056200,1755514240735,-150.0,0.00012472,2]
[380056202,1755514240744,-500.0,0.00012472,2]
[380056203,1755514240754,-150.0,0.00012472,2]
[380056205,1755514240764,-482.0,0.00012472,2]
[380056206,1755514240773,-500.0,0.00012472,2]
[380056207,1755514240783,-500.0,0.00012472,2]
[380056208,1755514240792,-500.0,0.00012472,2]
[380056209,1755514240802,-500.0,0.00012472,2]
[380056210,1755514240812,-500.0,0.00012472,2]
[380056212,1755514240822,-150.0,0.00012472,2]
[380056213,1755514240832,-500.0,0.00012472,2]
[380056214,1755514240841,-205.02295732,0.00012472,2]
[380056215,1755514240852,-150.0,0.00012472,2]
[380056216,1755514240864,-500.0,0.00012472,2]
[380056217,1755514240874,-500.0,0.00012472,2]
[380056218,1755514240884,-423.0,0.00012472,2]
[380056219,1755514240895,-500.0,0.00012472,2]
[380056220,1755514240904,-500.0,0.00012472,2]
[380056221,1755514240913,-500.0,0.00012472,2]
[380056222,1755514240922,-628.0,0.00012472,2]
[380056223,1755514240933,-793.0,0.00012472,2]
[380056224,1755514240942,-450.0,0.00012472,2]
[380056225,1755514240951,-3778.0,0.00012472,2]
[380056226,1755514240960,-500.0,0.00012472,2]
[380056227,1755514240969,-150.0,0.00012472,2]
[380056228,1755514240979,-2351.0,0.00012492,2]
[380056229,1755514240988,-250.0,0.00012501,2]
[380056230,1755514240997,-1000.0,0.00012529,2]
[380056231,1755514241007,-1000.0,0.00012588,2]
[380056232,1755514241016,-19670.61,0.000126,2]
[380056233,1755514241028,-1000.0,0.000126,2]
[380056234,1755514241038,-200.0,0.0001264,2]
[380056235,1755514241048,-150.0,0.00012675,2]
[380056236,1755514241057,-150.0,0.000127,2]
[380056237,1755514241066,-1000.0,0.0001271,2]
[380056238,1755514241075,-2000.0,0.00012716,2]
[380056239,1755514241084,-2000.0,0.00012716,2]
[380056240,1755514241093,-2000.0,0.00012716,2]
[380056241,1755514241103,-2000.0,0.00012716,2]
[380056242,1755514241112,-269.64252954,0.00012746,2]
[380056243,1755514241121,-500.0,0.00012746,2]
[380056244,1755514241131,-1501.0,0.00012746,2]
[380056245,1755514241140,-363.17614164,0.00012746,2]
[380056246,1755514241149,-420.0,0.00012746,2]
[380056247,1755514241158,-200.0,0.00012746,2]
[380056248,1755514241167,-500.0,0.00012746,2]
[380056249,1755514241177,-150.0,0.00012746,2]
[380056250,1755514241187,-482.0,0.00012746,2]
[380056251,1755514241196,-500.0,0.00012746,2]
[380056252,1755514241206,-221.36324721,0.00012746,2]
[380056253,1755514241215,-500.0,0.00012746,2]
[380056254,1755514241224,-500.0,0.00012746,2]
[380056255,1755514241234,-500.0,0.00012746,2]
[380056256,1755514241243,-242.5585184,0.00012746,2]
[380056257,1755514241252,-500.0,0.00012746,2]
[380056258,1755514241262,-150.0,0.00012746,2]
[380056259,1755514241272,-252.6357661,0.00012746,2]
[380056260,1755514241281,-500.0,0.00012746,2]
[380056261,1755514241290,-423.0,0.00012746,2]
[380056262,1755514241300,-500.0,0.00012746,2]
[380056263,1755514241309,-500.0,0.00012746,2]
[380056264,1755514241319,-500.0,0.00012746,2]
[380056265,1755514241329,-628.0,0.00012746,2]
[380056266,1755514241338,-793.0,0.00012746,2]
[380056267,1755514241348,-450.0,0.00012746,2]
[380056268,1755514241357,-3778.0,0.00012746,2]
[380056269,1755514241367,-500.0,0.00012746,2]
[380056270,1755514241376,-156.65280148,0.00012746,2]
[380056271,1755514241385,-456.46403188,0.00012777,2]
[380056272,1755514241395,-150.0,0.00012787,2]
[380056273,1755514241404,-790.34950417,0.00012788,2]
[380056274,1755514241414,-1007.30819159,0.00012788,2]
[380056275,1755514241424,-1224.26687901,0.00012788,2]
[380056276,1755514241433,-1441.22556643,0.00012788,2]
[380056277,1755514241443,-1658.18425385,0.00012789,2]
[380056278,1755514241452,-1875.14294127,0.00012789,2]
[380056279,1755514241461,-2092.10162868,0.00012789,2]
[380056280,1755514241470,-2309.0603161,0.0001279,2]
[380056281,1755514241480,-2526.01900352,0.0001279,2]
[380056282,1755514241490,-418738.21,0.000128,2]
[380056283,1755514241500,-200.0,0.00012811,2]
[380056284,1755514241509,-160.10236239,0.00012825,2]
[380056285,1755514241519,-5000.0,0.0001288,2]
[380056286,1755514241528,-1000.0,0.000129,2]
[380056287,1755514241547,-1183.77,0.00012914,2]
[380056288,1755514241562,-150.0,0.00012914,2]
[380056289,1755514241571,-150.0,0.00012914,2]
[380056290,1755514241588,-151.0,0.00012949,2]
[380056291,1755514241599,-5633.0,0.00012952,2]
[380056292,1755514241609,-300.0,0.0001297,2]
[380056293,1755514241619,-3914.14877357,0.0001297,2]
[380056294,1755514241630,-200.0,0.00012981,2]
[380056295,1755514241641,-218008.32272144,0.00013,2]
[380056296,1755514241651,-1029.27442137,0.00013,2]
[380056297,1755514241661,-400.0,0.00013,2]
[380056298,1755514241671,-500.0,0.0001302,2]
[380056299,1755514241680,-1501.0,0.0001302,2]
[380056300,1755514241690,-420.0,0.0001302,2]
[380056301,1755514241701,-500.0,0.0001302,2]
[380056302,1755514241711,-482.0,0.0001302,2]
[380056303,1755514241722,-500.0,0.0001302,2]
[380056304,1755514241732,-500.0,0.0001302,2]
[380056305,1755514241741,-500.0,0.0001302,2]
[380056306,1755514241751,-500.0,0.0001302,2]
[380056307,1755514241759,-620.08162908,0.0001302,2]
[380056308,1755514241769,-264.33516346,0.0001302,2]
[380056309,1755514241779,-500.0,0.0001302,2]
[380056310,1755514241788,-423.0,0.0001302,2]
[380056311,1755514241801,-500.0,0.0001302,2]
[380056312,1755514241810,-500.0,0.0001302,2]
[380056313,1755514241820,-628.0,0.0001302,2]
[380056314,1755514241829,-793.0,0.0001302,2]
[380056315,1755514241843,-450.0,0.0001302,2]
[380056316,1755514241852,-3778.0,0.0001302,2]
[380056317,1755514241865,-500.0,0.0001302,2]
[380056318,1755514241875,-1000.0,0.00013022,2]
[380056319,1755514241884,-1000.0,0.00013022,2]
[380056320,1755514241895,-1000.0,0.00013022,2]
[380056321,1755514241907,-1000.0,0.00013022,2]
[380056322,1755514241917,-1000.0,0.00013022,2]
[380056323,1755514241926,-1000.0,0.00013022,2]
[380056324,1755514241937,-1000.0,0.00013022,2]
[380056325,1755514241948,-1000.0,0.00013022,2]
[380056326,1755514241958,-1000.0,0.00013022,2]
[380056327,1755514241967,-1000.0,0.00013022,2]
[380056328,1755514241976,-1000.0,0.00013022,2]
[380056329,1755514241985,-1000.0,0.00013022,2]
[380056330,1755514241994,-1000.0,0.00013022,2]
[380056331,1755514242004,-1000.0,0.00013022,2]
[380056332,1755514242014,-1000.0,0.00013022,2]
[380056333,1755514242024,-1000.0,0.00013022,2]
[380056334,1755514242034,-1000.0,0.00013022,2]
[380056335,1755514242043,-1000.0,0.00013022,2]
[380056336,1755514242052,-1000.0,0.00013022,2]
[380056337,1755514242061,-1000.0,0.00013022,2]
[380056338,1755514242070,-1000.0,0.00013022,2]
[380056339,1755514242080,-1000.0,0.00013022,2]
[380056340,1755514242089,-1000.0,0.00013022,2]
[380056341,1755514242098,-1000.0,0.00013022,2]
[380056342,1755514242107,-1000.0,0.00013022,2]
[380056343,1755514242116,-1000.0,0.00013022,2]
[380056344,1755514242126,-1000.0,0.00013022,2]
[380056345,1755514242135,-1000.0,0.00013022,2]
[380056346,1755514242144,-1000.0,0.00013022,2]
[380056347,1755514242153,-1000.0,0.00013022,2]
[380056348,1755514242163,-1000.0,0.00013022,2]
[380056349,1755514242172,-1000.0,0.00013022,2]
[380056350,1755514242182,-1000.0,0.00013022,2]
[380056351,1755514242191,-1000.0,0.00013022,2]
[380056352,1755514242201,-1000.0,0.00013022,2]
[380056353,1755514242210,-1000.0,0.00013022,2]
[380056354,1755514242219,-1000.0,0.00013022,2]
[380056355,1755514242229,-1000.0,0.00013022,2]
[380056356,1755514242238,-1000.0,0.00013022,2]
[380056357,1755514242248,-1000.0,0.00013022,2]
[380056358,1755514242257,-1000.0,0.00013022,2]
[380056359,1755514242266,-1000.0,0.00013022,2]
[380056360,1755514242277,-1000.0,0.00013022,2]
[380056361,1755514242286,-1000.0,0.00013022,2]
[380056362,1755514242295,-1000.0,0.00013022,2]
[380056363,1755514242305,-1000.0,0.00013022,2]
[380056364,1755514242315,-1000.0,0.00013022,2]
[380056365,1755514242324,-1000.0,0.00013022,2]
[380056366,1755514242333,-1000.0,0.00013022,2]
[380056367,1755514242343,-1000.0,0.00013022,2]
[380056368,1755514242352,-1000.0,0.00013022,2]
[380056369,1755514242362,-1000.0,0.00013022,2]
[380056370,1755514242371,-1000.0,0.00013022,2]
[380056371,1755514242380,-1000.0,0.00013022,2]
[380056372,1755514242389,-1000.0,0.00013022,2]
[380056373,1755514242399,-1000.0,0.00013022,2]
[380056374,1755514242408,-1000.0,0.00013022,2]
[380056375,1755514242418,-1000.0,0.00013022,2]
[380056376,1755514242427,-1000.0,0.00013022,2]
[380056377,1755514242436,-1000.0,0.00013022,2]
[380056378,1755514242445,-1000.0,0.00013022,2]
[380056379,1755514242454,-1000.0,0.00013022,2]
[380056380,1755514242463,-1000.0,0.00013022,2]
[380056381,1755514242472,-1000.0,0.00013022,2]
[380056382,1755514242482,-1000.0,0.00013022,2]
[380056383,1755514242492,-1000.0,0.00013022,2]
[380056384,1755514242501,-1000.0,0.00013022,2]
[380056385,1755514242510,-1000.0,0.00013022,2]
[380056386,1755514242520,-1000.0,0.00013022,2]
[380056387,1755514242529,-1000.0,0.00013022,2]
[380056388,1755514242538,-1000.0,0.00013022,2]
[380056389,1755514242548,-1000.0,0.00013022,2]
[380056390,1755514242558,-1000.0,0.00013022,2]
[380056391,1755514242567,-1000.0,0.00013022,2]
[380056392,1755514242577,-1000.0,0.00013022,2]
[380056393,1755514242588,-1000.0,0.00013022,2]
[380056394,1755514242598,-1000.0,0.00013022,2]
[380056395,1755514242608,-1000.0,0.00013022,2]
[380056396,1755514242617,-1000.0,0.00013022,2]
[380056397,1755514242627,-1000.0,0.00013022,2]
[380056398,1755514242638,-1000.0,0.00013022,2]
[380056399,1755514242649,-1000.0,0.00013022,2]
[380056400,1755514242659,-1000.0,0.00013022,2]
[380056401,1755514242668,-1000.0,0.00013022,2]
[380056402,1755514242678,-1000.0,0.00013022,2]
[380056403,1755514242687,-1000.0,0.00013022,2]
[380056404,1755514242696,-1000.0,0.00013022,2]
[380056405,1755514242705,-1000.0,0.00013022,2]
[380056406,1755514242715,-1000.0,0.00013022,2]
[380056407,1755514242724,-1000.0,0.00013022,2]
[380056408,1755514242734,-1000.0,0.00013022,2]
[380056409,1755514242743,-1000.0,0.00013022,2]
[380056410,1755514242753,-1000.0,0.00013022,2]
[380056411,1755514242762,-1000.0,0.00013022,2]
[380056412,1755514242772,-1000.0,0.00013022,2]
[380056413,1755514242781,-1000.0,0.00013022,2]
[380056414,1755514242790,-1000.0,0.00013022,2]
[380056415,1755514242799,-1000.0,0.00013022,2]
[380056416,1755514242809,-1000.0,0.00013022,2]
[380056417,1755514242818,-1000.0,0.00013022,2]
[380056418,1755514242827,-500.0,0.00013068,2]
[380056419,1755514242837,-328.54306637,0.00013069,2]
[380056420,1755514242846,-677.27,0.00013074,2]
[380056421,1755514242859,-1544.0,0.00013078,2]
[380056422,1755514242870,-155.0,0.00013086,2]
[380056423,1755514242879,-1152.83,0.00013086,2]
[380056424,1755514242889,-847623.46259113,0.00013087,2]
[380056425,1755514242900,-433.0,0.00013089,2]
[380056426,1755514242910,-1000.0,0.000131,2]
[380056427,1755514242922,-5633.0,0.00013113,2]
[380056428,1755514242932,-1544.0,0.00013124,2]
[380056429,1755514242942,-1544.0,0.00013137,2]
[380056430,1755514242951,-1544.0,0.00013175,2]
[380056431,1755514242961,-10000.0,0.0001322,2]
[380056432,1755514242971,-311.1,0.00013222,2]
[380056433,1755514242980,-160.0,0.00013222,2]
[380056434,1755514242989,-287.61899177,0.00013222,2]
[380056435,1755514242999,-156.58,0.00013243,2]
[380056436,1755514243008,-169.06,0.00013257,2]
[380056437,1755514243018,-2500.0,0.00013264,2]
[380056438,1755514243027,-2500.0,0.00013264,2]
[380056439,1755514243036,-2500.0,0.00013264,2]
[380056440,1755514243046,-2500.0,0.00013264,2]
[380056441,1755514243055,-569.13178914,0.00013275,2]
[380056442,1755514243064,-162.71,0.00013282,2]
[380056444,1755514243074,-500.0,0.00013294,2]
[380056445,1755514243083,-1501.0,0.00013294,2]
[380056446,1755514243092,-420.0,0.00013294,2]
[380056447,1755514243101,-500.0,0.00013294,2]
[380056448,1755514243112,-482.0,0.00013294,2]
[380056449,1755514243122,-500.0,0.00013294,2]
[380056450,1755514243131,-500.0,0.00013294,2]
[380056451,1755514243140,-500.0,0.00013294,2]
[380056452,1755514243150,-500.0,0.00013294,2]
[380056453,1755514243159,-500.0,0.00013294,2]
[380056454,1755514243169,-423.0,0.00013294,2]
[380056456,1755514243178,-500.0,0.00013294,2]
[380056457,1755514243188,-500.0,0.00013294,2]
[380056458,1755514243199,-628.0,0.00013294,2]
[380056459,1755514243209,-793.0,0.00013294,2]
[380056460,1755514243218,-450.0,0.00013294,2]
[380056461,1755514243227,-3778.0,0.00013294,2]
[380056462,1755514243236,-367.96869791,0.00013294,2]
[380056463,1755514243246,-1000.0,0.000133,2]
[380056464,1755514243255,-1000.0,0.00013308,2]
[380056466,1755514243265,-1544.0,0.00013324,2]
[380056468,1755514243275,-5633.0,0.00013331,2]
[380056470,1755514243284,-1000.0,0.00013359,2]
[380056473,1755514243293,-24913.43175592,0.00013368,2]
[380056474,1755514243303,-1544.0,0.00013374,2]
[380056475,1755514243313,-150.0,0.00013387,2]
[380056476,1755514243323,-152.73399958,0.00013389,2]
[380056477,1755514243332,-5633.0,0.00013395,2]
[380056478,1755514243342,-36203.01565017,0.00013397,2]
[380056479,1755514243351,-25371.745335,0.00013397,2]
[380056480,1755514243360,-333925.11630313,0.00013399,2]
[380056481,1755514243370,-1438.52315849,0.000134,2]
[380056482,1755514243379,-1438.52315849,0.000134,2]
[380056483,1755514243389,-25371.745335,0.00013403,2]
[380056484,1755514243693,-36203.01565017,0.00013404,2]
[380056485,1755514243703,-1438.52315849,0.00013406,2]
[380056486,1755514243712,-333925.11630313,0.0001341,2]
[380056487,1755514243722,-1438.52315849,0.0001341,2]
[380056488,1755514243731,-105689.66782768,0.00013414,2]
[380056489,1755514243740,-105689.66782768,0.00013415,2]
[380056490,1755514243750,-36203.01565017,0.00013419,2]
[380056491,1755514243759,-1544.0,0.0001342,2]
[380056492,1755514243769,-150.0,0.00013425,2]
[380056493,1755514243779,-105689.66782768,0.00013425,2]
[380056494,1755514243788,-5633.0,0.00013427,2]
[380056495,1755514243798,-25371.745335,0.00013428,2]
[380056496,1755514243808,-222.29401043,0.00013431,2]
[380056497,1755514243818,-25371.745335,0.00013432,2]
[380056498,1755514243828,-25371.745335,0.00013433,2]
[380056499,1755514243838,-333925.11630313,0.00013433,2]
[380056500,1755514243848,-25371.745335,0.00013435,2]
[380056501,1755514243863,-1438.52315849,0.00013441,2]
[380056502,1755514243873,-1544.0,0.00013447,2]
[380056503,1755514243884,-26423.98036008,0.00013448,2]
[380056504,1755514243893,-105689.66782768,0.00013448,2]
[380056505,1755514243905,-1544.0,0.00013449,2]
[380056506,1755514243915,-26423.98036008,0.0001345,2]
[380056507,1755514243924,-26423.98036008,0.00013452,2]
[380056508,1755514243935,-26423.98036008,0.00013454,2]
[380056509,1755514243945,-652.37479559,0.0001346,9]
[380056510,1755514243954,-1000.0,0.0001346,2]
[380056511,1755514243964,-105689.66782768,0.00013461,2]
[380056512,1755514243973,-5633.0,0.00013462,2]
[380056514,1755514243983,-36203.01565017,0.00013467,2]
[380056515,1755514243992,-1438.52315849,0.00013468,2]
[380056516,1755514244002,-36203.01565017,0.00013476,2]
[380056517,1755514244012,-333925.11630313,0.00013477,2]
[380056518,1755514244023,-36203.01565017,0.00013478,2]
[380056519,1755514244033,-26423.98036008,0.00013479,2]
[380056520,1755514244043,-26423.98036008,0.0001348,2]
[380056521,1755514244052,-25371.745335,0.0001348,2]
[380056522,1755514244062,-333925.11630313,0.0001348,2]
[380056523,1755514244071,-1438.52315849,0.0001348,2]
[380056524,1755514244081,-36203.01565017,0.00013488,2]
[380056525,1755514244091,-105689.66782768,0.00013488,2]
[380056526,1755514244101,-333925.11630313,0.00013491,2]
[380056527,1755514244110,-26423.98036008,0.00013491,2]
[380056528,1755514244120,-333925.11630313,0.00013494,2]
[380056529,1755514244130,-105689.66782768,0.00013495,2]
[380056530,1755514244140,-151.0,0.00013497,2]
[380056531,1755514244149,-1000.0,0.000135,2]
[380056532,1755514244159,-1544.0,0.00013507,2]
[380056533,1755514244169,-5633.0,0.00013511,2]
[380056534,1755514244178,-1000.0,0.00013529,2]
[380056535,1755514244188,-1000.0,0.00013545,2]
[380056536,1755514244198,-500.0,0.00013568,2]
[380056537,1755514244208,-1501.0,0.00013568,2]
[380056538,1755514244218,-420.0,0.00013568,2]
[380056539,1755514244227,-500.0,0.00013568,2]
[380056540,1755514244237,-482.0,0.00013568,2]
[380056541,1755514244246,-606.60764749,0.00013568,2]
[380056542,1755514244256,-500.0,0.00013568,2]
[380056543,1755514244266,-500.0,0.00013568,2]
[380056544,1755514244277,-500.0,0.00013568,2]
[380056545,1755514244287,-507.52391232,0.00013568,2]
[380056546,1755514244296,-423.0,0.00013568,2]
[380056547,1755514244305,-500.0,0.00013568,2]
[380056548,1755514244314,-500.0,0.00013568,2]
[380056549,1755514244323,-628.0,0.00013568,2]
[380056550,1755514244334,-793.0,0.00013568,2]
[380056551,1755514244344,-450.0,0.00013568,2]
[380056552,1755514244355,-3778.0,0.00013568,2]
[380056553,1755514244366,-5633.0,0.00013577,2]
[380056554,1755514244376,-2000.0,0.00013599,2]
[380056555,1755514244386,-1000.0,0.0001362,2]
[380056556,1755514244396,-150.0,0.0001363,2]
[380056557,1755514244406,-150.0,0.00013632,2]
[380056558,1755514244416,-1152.83,0.00013634,2]
[380056559,1755514244426,-1001.17810198,0.0001365,2]
[380056560,1755514244437,-5633.0,0.00013657,2]
[380056561,1755514244449,-150.0,0.00013663,2]
[380056562,1755514244459,-150.0,0.00013664,2]
[380056563,1755514244469,-169.42495606,0.00013665,2]
[380056564,1755514244480,-170.88708896,0.00013665,2]
[380056565,1755514244490,-1248.51039502,0.00013665,2]
[380056566,1755514244511,-664.48115937,0.00013665,2]
[380056567,1755514244521,-3751.85230727,0.00013665,2]
[380056568,1755514244532,-1115.84834245,0.0001367,2]
[380056569,1755514244542,-1000.0,0.0001367,2]
[380056570,1755514244552,-150.0,0.00013673,2]
[380056571,1755514244562,-5633.0,0.00013689,2]
[380056572,1755514244572,-150.0,0.0001369,2]
[380056573,1755514244582,-156.58,0.00013696,2]
[380056574,1755514244592,-400.0,0.00013698,2]
[380056575,1755514244603,-413.72663745,0.00013698,2]
[380056576,1755514244613,-3627.73,0.00013699,2]
[380056577,1755514244625,-4543.4,0.00013699,2]
[380056578,1755514244635,-4885.67,0.00013699,2]
[380056579,1755514244646,-200.0,0.00013699,2]
[380056580,1755514244657,-200.0,0.00013699,2]
[380056581,1755514244668,-1500.0,0.00013699,2]
[380056582,1755514244682,-1000.0,0.00013699,2]
[380056583,1755514244692,-609.64,0.00013699,2]
[380056584,1755514244703,-200.0,0.00013699,2]
[380056585,1755514244713,-200.0,0.00013699,2]
[380056586,1755514244724,-200.0,0.00013699,2]
[380056587,1755514244734,-500.0,0.00013699,2]
[380056588,1755514244744,-500.0,0.00013699,2]
[380056589,1755514244754,-500.0,0.00013699,2]
[380056590,1755514244765,-500.0,0.00013699,2]
[380056591,1755514244776,-500.0,0.00013699,2]
[380056592,1755514244788,-500.0,0.00013699,2]
[380056593,1755514244809,-500.0,0.00013699,2]
[380056594,1755514244819,-500.0,0.00013699,2]
[380056595,1755514244840,-500.0,0.00013699,2]
[380056596,1755514244850,-500.0,0.00013699,2]
[380056597,1755514244866,-500.0,0.00013699,2]
[380056598,1755514244876,-500.0,0.00013699,2]
[380056599,1755514244885,-500.0,0.00013699,2]
[380056600,1755514244895,-500.0,0.00013699,2]
[380056601,1755514244906,-562.72505814,0.00013699,2]
[380056602,1755514244917,-160.01604902,0.00013699,2]
[380056603,1755514244927,-500.0,0.00013699,2]
[380056604,1755514244939,-500.0,0.00013699,2]
[380056605,1755514244950,-500.0,0.00013699,2]
[380056606,1755514244960,-159.99350738,0.00013699,2]
[380056607,1755514244970,-500.0,0.00013699,2]
[380056608,1755514244980,-500.0,0.00013699,2]
[380056609,1755514244990,-500.0,0.00013699,2]
[380056610,1755514245001,-500.0,0.00013699,2]
[380056611,1755514245011,-500.0,0.00013699,2]
[380056612,1755514245022,-500.0,0.00013699,2]
[380056613,1755514245032,-163.75562671,0.00013699,2]
[380056614,1755514245041,-500.0,0.00013699,2]
[380056615,1755514245052,-500.0,0.00013699,2]
[380056616,1755514245062,-500.0,0.00013699,2]
[380056617,1755514245072,-500.0,0.00013699,2]
[380056618,1755514245082,-159.99634379,0.00013699,2]
[380056619,1755514245091,-159.99648079,0.00013699,2]
[380056620,1755514245101,-500.0,0.00013699,2]
[380056621,1755514245111,-500.0,0.00013699,2]
[380056622,1755514245121,-500.0,0.00013699,2]
[380056623,1755514245131,-160.01190068,0.00013699,2]
[380056624,1755514245141,-159.97652229,0.00013699,2]
[380056625,1755514245150,-534.25,0.00013699,2]
[380056626,1755514245160,-500.0,0.00013699,2]
[380056627,1755514245170,-647.28412142,0.00013699,2]
[380056628,1755514245179,-500.0,0.00013699,2]
[380056629,1755514245190,-505.28318506,0.00013699,2]
[380056630,1755514245199,-159.99468477,0.00013699,2]
[380056631,1755514245209,-500.0,0.00013699,2]
[380056632,1755514245219,-500.0,0.00013699,2]
[380056633,1755514245229,-500.0,0.00013699,2]
[380056634,1755514245239,-500.0,0.00013699,2]
[380056635,1755514245250,-500.0,0.00013699,2]
[380056636,1755514245260,-500.0,0.00013699,2]
[380056637,1755514245270,-500.0,0.00013699,2]
[380056638,1755514245280,-500.0,0.00013699,2]
[380056639,1755514245290,-505.76684061,0.00013699,2]
[380056640,1755514245299,-500.0,0.00013699,2]
[380056641,1755514245310,-527.77638694,0.00013699,2]
[380056642,1755514245320,-521.6778502,0.00013699,2]
[380056643,1755514245330,-500.0,0.00013699,2]
[380056644,1755514245339,-500.0,0.00013699,2]
[380056645,1755514245349,-300.0,0.00013699,2]
[380056646,1755514245359,-150.0,0.00013699,2]
[380056647,1755514245369,-159.36792484,0.000137,2]
[380056648,1755514245379,-159.36792484,0.000137,2]